bitfinex/quotes_SOLUSD_20241208
["timestamp","ask_amount","ask_price","bid_price","bid_amount"]
[1733651893150,13.14518303,233.98,233.96,24.16620949]
[1733651893322,13.14518303,233.98,233.96,0.38932549]
[1733651894430,13.14518303,234.0,233.96,0.38932549]
[1733651894627,21.3574,234.11,233.96,37.31139252]
[1733651894850,13.14518303,234.02,233.96,37.31139252]
[1733651895031,13.14518303,234.03,233.96,37.31139252]
[1733651895926,10.6795,234.1,233.99,23.776884]
[1733651895927,13.14518303,234.04,233.99,23.776884]
[1733651896261,13.14518303,234.06,233.99,36.92206703]
[1733651896423,10.6795,234.1,233.97,36.92206703]
[1733651896424,13.14518303,234.04,233.97,36.92206703]
[1733651896836,13.14518303,234.05,233.99,23.776884]
[1733651897941,13.14518303,234.04,233.97,36.92206703]
[1733651898266,13.14518303,234.02,233.97,23.776884]
[1733651898834,13.14518303,234.03,233.97,23.776884]
[1733651899037,13.14518303,234.04,233.97,36.92206703]
[1733651900173,13.14518303,234.04,233.98,13.14518303]
[1733651900375,13.14518303,234.04,233.99,23.776884]
[1733651900538,13.14518303,234.05,233.99,23.776884]
[1733651901062,13.14518303,234.06,234.0,13.14518303]
[1733651901460,13.14518303,234.05,233.99,13.14518303]
[1733651901960,13.14518303,234.05,234.0,23.776884]
[1733651903763,13.14518303,234.06,234.0,36.92206703]
[1733651905082,13.14518303,234.07,234.0,36.92206703]
[1733651905780,10.6755,234.18,234.0,36.92206703]
[1733651905781,13.14518303,234.09,234.03,13.14518303]
[1733651905988,13.14518303,234.1,234.04,23.776884]
[1733651906982,13.14518303,234.09,234.04,23.776884]
[1733651908492,13.14518303,234.1,234.04,23.776884]
[1733651908688,13.14518303,234.11,234.07,23.776884]
[1733651908897,13.14518303,234.12,234.07,23.776884]
[1733651909062,13.14518303,234.08,234.07,23.776884]
[1733651909874,13.14518303,234.09,234.07,23.776884]
[1733651910680,8.41430743,234.1,234.07,23.776884]
[1733651912105,10.6767,234.16,234.07,23.776884]
[1733651912270,8.41430743,234.1,234.07,23.776884]
[1733651913856,20.0,234.18,234.07,32.19119143]
[1733651914016,15.6737,234.22,234.07,32.19119143]
[1733651914017,10.6737,234.22,234.14,8.41430743]
[1733651914199,8.41430743,234.16,234.15,23.776884]
[1733651914357,10.6737,234.22,234.15,23.776884]
[1733651914991,13.14211424,234.16,234.15,23.776884]
[1733651918785,13.14211424,234.16,234.06,11.2573]
[1733651918986,13.14211424,234.09,234.06,11.2573]
[1733651919186,13.14211424,234.07,234.06,11.2573]
[1733651919788,13.14211424,234.07,234.01,11.9582]
[1733651919990,13.14211424,234.06,234.01,11.9582]
[1733651921969,10.6787,234.11,234.01,11.9582]
[1733651922169,13.14211424,234.02,234.01,11.9582]
[1733651922392,13.14211424,234.02,233.96,4.91362549]
[1733651922585,13.14211424,234.0,233.96,4.91362549]
[1733651922899,13.14211424,234.01,233.96,4.91362549]
[1733651923328,13.14211424,233.98,233.96,4.91362549]
[1733651923594,3.5909,234.1,233.96,400.38932549]
[1733651923595,13.14211424,233.97,233.96,400.38932549]
[1733651924595,13.14211424,233.98,233.96,400.38932549]
[1733651925004,13.14211424,233.98,233.97,23.776884]
[1733651927674,13.14211424,233.99,233.97,23.776884]
[1733651927880,13.14211424,234.01,233.97,23.776884]
[1733651928607,13.14211424,234.02,233.97,23.776884]
[1733651929202,13.14211424,234.05,233.99,13.14211424]
[1733651929504,13.14211424,234.08,234.02,36.91899824]
[1733651929679,13.14211424,234.08,234.02,13.14211424]
[1733651930000,13.14211424,234.09,234.03,23.776884]
[1733651930185,13.14211424,234.1,234.04,36.91899824]
[1733651930390,13.14211424,234.13,234.07,36.91899824]
[1733651930585,13.14211424,234.13,234.07,23.776884]
[1733651930785,10.6761,234.17,234.07,36.91899824]
[1733651930786,13.14211424,234.14,234.07,36.91899824]
[1733651930984,13.14211424,234.15,234.1,23.776884]
[1733651931304,13.14211424,234.16,234.1,23.776884]
[1733651932301,13.14211424,234.15,234.1,23.776884]
[1733651932473,13.14211424,234.14,234.08,36.91899824]
[1733651933093,13.14211424,234.13,234.08,23.776884]
[1733651934690,13.14211424,234.22,234.13,23.776884]
[1733651934902,13.14211424,234.16,234.13,23.776884]
[1733651935519,13.14211424,234.17,234.11,23.776884]
[1733651936511,13.14211424,234.19,234.13,23.776884]
[1733651937214,13.14211424,234.2,234.14,13.14211424]
[1733651937390,13.14211424,234.21,234.15,23.776884]
[1733651938351,13.14211424,234.22,234.15,36.91899824]
[1733651938517,13.14211424,234.21,234.15,36.91899824]
[1733651938891,13.14211424,234.21,234.15,436.91899824]
[1733651939090,13.14211424,234.23,234.17,23.776884]
[1733651939923,13.14211424,234.24,234.17,36.91899824]
[1733651940095,13.14211424,234.24,234.19,23.776884]
[1733651940813,13.62575454,234.31,234.24,23.776884]
[1733651940996,13.14211424,234.3,234.24,23.776884]
[1733651941613,0.4836403,234.31,234.24,23.776884]
[1733651941921,13.14211424,234.3,234.24,23.776884]
[1733651942217,13.62575454,234.31,234.24,36.91899824]
[1733651942427,13.14211424,234.3,234.24,23.776884]
[1733651942914,0.4836403,234.31,234.25,13.14211424]
[1733651943491,0.4836403,234.31,234.27,23.776884]
[1733651943912,0.4836403,234.31,234.26,23.776884]
[1733651944116,0.4836403,234.31,234.26,36.91899824]
[1733651944718,0.4836403,234.31,234.28,23.776884]
[1733651944924,13.14211424,234.29,234.28,23.776884]
[1733651945596,13.14211424,234.29,234.27,400.0]
[1733651945809,13.14211424,234.28,234.27,400.0]
[1733651949204,13.14211424,234.3,234.28,23.776884]
[1733651949833,13.14211424,234.29,234.28,23.776884]
[1733651950724,13.14211424,234.29,234.27,400.0]
[1733651950916,13.14211424,234.28,234.27,400.0]
[1733651952027,13.14211424,234.28,234.27,395.723]
[1733651953031,13.14211424,234.29,234.27,395.723]
[1733651953378,13.14211424,234.28,234.27,395.723]
[1733651955432,13.14211424,234.28,234.27,391.3184]
[1733651956007,13.14211424,234.28,234.27,378.4007]
[1733651956315,13.14211424,234.28,234.27,374.4383]
[1733651956637,13.14211424,234.28,234.27,370.5628]
[1733651956930,13.14211424,234.28,234.27,358.0395]
[1733651959226,13.14211424,234.28,234.27,341.5241]
[1733651959547,13.14211424,234.28,234.27,323.9094]
[1733651962516,13.14211424,234.28,234.27,321.3494]
[1733651962719,13.14211424,234.28,234.27,232.70724411]
[1733651963044,13.14211424,234.28,234.27,228.18094411]
[1733651963216,13.14211424,234.28,234.27,223.71284411]
[1733651963913,13.14211424,234.28,234.27,218.26604411]
[1733651964113,13.14211424,234.28,234.27,208.05204411]
[1733651964419,13.14211424,234.28,234.27,203.90994411]
[1733651964650,13.14211424,234.28,234.27,200.12894411]
[1733651965043,13.14211424,234.28,234.27,196.13624411]
[1733651967051,20.0,234.28,234.27,196.13624411]
[1733651967227,33.14211424,234.28,234.27,196.13624411]
[1733651969435,0.4836403,234.31,234.27,207.58224411]
[1733651970045,13.62575454,234.31,234.27,207.58224411]
[1733651971055,13.14211424,234.3,234.27,207.58224411]
[1733651971762,13.14211424,234.29,234.27,207.58224411]
[1733651972278,13.14211424,234.28,234.27,207.58224411]
[1733651973156,13.14211424,234.28,234.27,196.13624411]
[1733651974971,13.14211424,234.28,234.27,193.10944411]
[1733651975275,13.14211424,234.28,234.27,185.78414411]
[1733651975654,13.14211424,234.28,234.27,180.58924411]
[1733651975887,13.14211424,234.28,234.27,175.39434411]
[1733651984680,8.40600087,234.28,234.27,175.39434411]
[1733651988601,10.1303995,234.28,234.27,168.96264411]
[1733651988798,77.53128698,234.28,234.27,78.18879351]
[1733651988972,82.03316981,234.28,234.27,60.66848576]
[1733651989287,89.7167978,234.28,234.27,60.66848576]
[1733651990567,45.96239482,234.28,234.27,60.66848576]
[1733651991092,45.96239482,234.28,234.27,48.5963132]
[1733651991461,72.24248946,234.28,234.27,48.5963132]
[1733651991656,72.24248946,234.28,234.1,12.2508]
[1733651991971,13.14004732,234.15,234.11,23.776884]
[1733651992871,13.14004732,234.24,234.11,36.91693132]
[1733651992872,13.14004732,234.18,234.11,36.91693132]
[1733651993874,13.14004732,234.19,234.12,13.14004732]
[1733651994561,13.14004732,234.22,234.15,13.14004732]
[1733651995006,13.14004732,234.21,234.14,13.14004732]
[1733651995177,13.14004732,234.2,234.13,13.14004732]
[1733651995497,13.14004732,234.2,234.14,23.776884]
[1733651996309,13.14004732,234.19,234.14,23.776884]
[1733651996603,13.14004732,234.2,234.14,23.776884]
[1733651998703,13.14004732,234.19,234.14,23.776884]
[1733652000304,13.14004732,234.21,234.15,13.14004732]
[1733652000487,13.14004732,234.21,234.14,23.776884]
[1733652000488,33.14004732,234.23,234.16,13.14004732]
[1733652000687,13.14004732,234.2,234.14,36.91693132]
[1733652000892,13.14004732,234.18,234.12,13.14004732]
[1733652001101,13.14004732,234.17,234.11,13.14004732]
[1733652001916,13.14004732,234.17,234.1,12.2508]
[1733652002097,13.14004732,234.14,234.1,12.2508]
[1733652002602,13.14004732,234.13,234.1,12.2508]
[1733652003496,13.14004732,234.14,234.1,12.2508]
[1733652003822,13.14004732,234.15,234.1,12.2508]
[1733652004121,17.0795,234.2,234.1,12.2508]
[1733652004122,20.0,234.17,234.11,13.14004732]
[1733652004285,17.0795,234.2,234.13,13.14004732]
[1733652004286,13.14004732,234.2,234.13,13.14004732]
[1733652004686,13.14004732,234.18,234.11,36.91693132]
[1733652005714,8.5408,234.17,234.11,36.91693132]
[1733652007916,8.5408,234.17,234.12,13.14004732]
[1733652008714,8.5408,234.17,234.11,23.776884]
[1733652009017,8.5408,234.17,234.11,36.91693132]
[1733652009192,13.14004732,234.17,234.11,36.91693132]
[1733652009907,8.5393,234.21,234.11,36.91693132]
[1733652009908,13.14004732,234.16,234.11,23.776884]
[1733652010119,13.14004732,234.14,234.1,12.2508]
[1733652010301,13.14004732,234.16,234.1,25.39084732]
[1733652010498,8.41052829,234.16,234.1,20.66132829]
[1733652011226,16.95202829,234.15,234.1,12.2508]
[1733652011928,8.5415,234.15,234.1,12.2508]
[1733652012099,8.5415,234.15,234.1,20.66132829]
[1733652012437,8.5415,234.15,234.12,8.41052829]
[1733652012730,8.5401,234.19,234.14,8.41052829]
[1733652012900,8.5401,234.19,234.11,23.776884]
[1733652012901,8.5401,234.19,234.16,8.41052829]
[1733652013098,8.5401,234.19,234.17,8.41052829]
[1733652013315,8.41052829,234.23,234.17,8.41052829]
[1733652013513,8.5386,234.24,234.19,8.41052829]
[1733652013715,8.5386,234.24,234.2,21.49062829]
[1733652014929,8.41052829,234.28,234.22,8.41052829]
[1733652015418,8.536,234.3,234.25,8.41052829]
[1733652015820,0.4836403,234.31,234.25,8.41052829]
[1733652016029,0.4836403,234.31,234.26,8.41052829]
[1733652016638,0.4836403,234.31,234.26,13.12290245]
[1733652017105,20.0,234.3,234.25,13.12290245]
[1733652017829,0.4836403,234.31,234.26,13.12290245]
[1733652018032,0.4836403,234.31,234.25,13.12290245]
[1733652018929,13.12290245,234.27,234.21,13.12290245]
[1733652019103,13.12290245,234.22,234.2,13.0801]
[1733652019302,13.12290245,234.21,234.2,13.0801]
[1733652020241,13.12290245,234.21,234.14,13.5701]
[1733652020530,13.12290245,234.18,234.14,13.5701]
[1733652021209,13.12290245,234.16,234.14,13.5701]
[1733652023638,13.12290245,234.17,234.14,13.5701]
[1733652025423,13.12290245,234.18,234.14,13.5701]
[1733652028839,13.12290245,234.15,234.09,8.6864]
[1733652029041,13.12290245,234.14,234.09,8.6864]
[1733652029416,13.12290245,234.16,234.09,21.80930245]
[1733652030320,13.12290245,234.18,234.12,13.12290245]
[1733652030514,13.12290245,234.17,234.1,13.12290245]
[1733652031044,13.12290245,234.16,234.09,21.80930245]
[1733652031419,13.12290245,234.17,234.1,13.12290245]
[1733652032425,8.5411,234.16,234.1,13.12290245]
[1733652033245,8.5411,234.16,234.11,36.89978645]
[1733652033459,8.5411,234.16,234.11,13.12290245]
[1733652033621,8.5411,234.16,234.12,13.12290245]
[1733652033815,8.5411,234.16,234.11,13.12290245]
[1733652034145,8.5411,234.16,234.1,36.89978645]
[1733652034948,25.6158,234.23,234.13,13.12290245]
[1733652035246,13.12290245,234.2,234.13,13.12290245]
[1733652035430,13.12290245,234.21,234.14,13.12290245]
[1733652035832,13.12290245,234.2,234.14,13.12290245]
[1733652036147,25.6158,234.23,234.14,13.12290245]
[1733652036148,17.0772,234.23,234.14,13.12290245]
[1733652036315,13.12290245,234.2,234.14,13.12290245]
[1733652036517,8.40744367,234.2,234.14,8.40744367]
[1733652037331,8.40744367,234.2,234.1,23.776884]
[1733652037332,1.75810922,234.26,234.15,32.18432767]
[1733652037634,8.40744367,234.23,234.16,8.40744367]
[1733652037933,8.5378,234.25,234.18,8.40744367]
[1733652038130,8.40744367,234.27,234.2,32.18432767]
[1733652038351,8.40744367,234.27,234.21,8.40744367]
[1733652038922,8.40744367,234.28,234.21,8.40744367]
[1733652039157,8.40744367,234.28,234.22,8.40744367]
[1733652039931,8.5367,234.29,234.22,8.40744367]
[1733652040132,16.94414367,234.29,234.22,8.40744367]
[1733652040640,16.94414367,234.29,234.22,13.12720917]
[1733652040641,21.66390917,234.29,234.22,13.12720917]
[1733652041035,8.5367,234.29,234.23,13.12720917]
[1733652041865,13.12720917,234.28,234.22,13.12720917]
[1733652042036,13.12720917,234.28,234.21,13.12720917]
[1733652042234,13.12720917,234.28,234.22,23.776884]
[1733652042839,13.12720917,234.27,234.22,23.776884]
[1733652043244,13.12720917,234.26,234.19,22.04430917]
[1733652043482,13.12720917,234.26,234.2,23.776884]
[1733652044446,13.12720917,234.25,234.19,22.04430917]
[1733652045242,21.66480917,234.26,234.19,22.04430917]
[1733652046454,13.12720917,234.25,234.19,22.04430917]
[1733652048146,13.12720917,234.29,234.22,13.12720917]
[1733652048349,13.12720917,234.29,234.23,13.12720917]
[1733652049274,21.66350917,234.3,234.23,13.12720917]
[1733652050065,8.5363,234.3,234.24,13.12720917]
[1733652050265,8.5363,234.3,234.25,13.12720917]
[1733652051369,0.4836403,234.31,234.29,13.12720917]
[1733652051535,0.4836403,234.31,234.28,5.1557]
[1733652051536,0.4836403,234.31,234.3,13.12720917]
[1733652054343,0.4836403,234.31,234.3,45.72699317]
[1733652055068,13.12720917,234.4,234.3,45.72699317]
[1733652055069,1.68710419,234.4,234.3,45.72699317]
[1733652055276,8.5319,234.42,234.37,13.12720917]
[1733652055444,13.12720917,234.43,234.37,13.12720917]
[1733652055643,13.12720917,234.45,234.39,13.12720917]
[1733652056470,1.67697813,234.48,234.43,13.12720917]
[1733652056655,21.65600917,234.5,234.43,13.12720917]
[1733652056858,21.65600917,234.5,234.4,8.3269]
[1733652056859,8.5288,234.5,234.45,13.12720917]
[1733652059056,21.65600917,234.5,234.44,13.12720917]
[1733652059257,13.12720917,234.48,234.42,18.44580917]
[1733652060673,13.12720917,234.46,234.42,5.3186]
[1733652061260,21.65700917,234.47,234.42,5.3186]
[1733652061467,8.5298,234.47,234.42,18.44580917]
[1733652061973,13.12720917,234.48,234.42,18.44580917]
[1733652062581,13.12720917,234.49,234.42,18.44580917]
[1733652062882,21.65480917,234.53,234.46,13.12720917]
[1733652063288,13.12720917,234.51,234.45,13.12720917]
[1733652063453,13.12720917,234.5,234.43,13.12720917]
[1733652063657,13.12720917,234.49,234.43,13.12720917]
[1733652064053,0.4836403,234.54,234.43,13.12720917]
[1733652064054,8.5295,234.48,234.43,13.12720917]
[1733652064258,8.5295,234.48,234.44,13.12720917]
[1733652064469,8.5295,234.48,234.43,13.12720917]
[1733652064881,13.12720917,234.46,234.42,5.3186]
[1733652065184,13.12720917,234.43,234.37,5.3186]
[1733652065358,8.5295,234.48,234.37,5.3186]
[1733652065359,13.12720917,234.42,234.37,5.3186]
[1733652065559,13.12720917,234.41,234.37,5.3186]
[1733652067388,13.12720917,234.4,234.37,5.3186]
[1733652067571,13.12720917,234.4,234.34,8.3269]
[1733652067758,13.12720917,234.35,234.31,5.3186]
[1733652068167,13.12720917,234.32,234.28,8.3269]
[1733652068393,13.12720917,234.31,234.28,8.3269]
[1733652069459,6.68130214,234.43,234.22,8.3269]
[1733652069460,13.12720917,234.29,234.22,8.3269]
[1733652069660,13.12720917,234.29,234.22,21.45410917]
[1733652071061,13.12720917,234.28,234.22,8.3269]
[1733652071261,13.12720917,234.29,234.22,21.45410917]
[1733652071469,13.12720917,234.29,234.23,13.12720917]
[1733652071671,17.067,234.37,234.28,13.12720917]
[1733652071672,8.5345,234.35,234.28,13.12720917]
[1733652071986,13.12720917,234.34,234.28,13.12720917]
[1733652072492,13.12720917,234.34,234.23,23.776884]
[1733652072493,13.12720917,234.33,234.27,13.12720917]
[1733652073261,13.12720917,234.35,234.29,13.12720917]
[1733652073870,13.12720917,234.38,234.32,13.12720917]
[1733652074993,13.12720917,234.34,234.29,5.3186]
[1733652075172,8.5335,234.37,234.3,13.12720917]
[1733652075493,21.66070917,234.37,234.3,13.12720917]
[1733652075684,13.12720917,234.36,234.3,13.12720917]
[1733652076160,13.12720917,234.32,234.29,5.3186]
[1733652076366,13.12720917,234.3,234.24,13.12720917]
[1733652077375,13.12720917,234.3,234.23,18.49820917]
[1733652077899,13.12720917,234.3,234.24,36.90409317]
[1733652079476,21.66140917,234.35,234.29,13.12720917]
[1733652079986,21.66140917,234.35,234.24,23.776884]
[1733652079987,8.5342,234.35,234.3,13.12720917]
[1733652080178,8.5342,234.35,234.31,13.12720917]
[1733652080703,8.5342,234.35,234.3,13.12720917]
[1733652081200,13.12720917,234.35,234.29,13.12720917]
[1733652082003,13.12720917,234.34,234.27,13.12720917]
[1733652082200,13.12720917,234.31,234.25,13.12720917]
[1733652082507,13.12720917,234.31,234.24,13.12720917]
[1733652083082,5.0,234.42,234.23,5.371]
[1733652083083,13.12720917,234.3,234.23,18.49820917]
[1733652083481,21.66360917,234.29,234.23,5.371]
[1733652083904,8.5364,234.29,234.23,18.49820917]
[1733652085604,13.12720917,234.3,234.23,18.49820917]
[1733652086982,13.12720917,234.31,234.24,13.12720917]
[1733652087184,8.5346,234.34,234.28,13.12720917]
[1733652088591,8.5346,234.34,234.29,13.12720917]
[1733652090592,13.12720917,234.34,234.27,13.12720917]
[1733652090901,13.12720917,234.31,234.25,13.12720917]
[1733652092210,13.12720917,234.31,234.24,23.776884]
[1733652092211,21.66240917,234.33,234.26,13.12720917]
[1733652092512,13.12720917,234.32,234.26,13.12720917]
[1733652092807,13.12720917,234.31,234.25,13.12720917]
[1733652093010,13.12720917,234.32,234.26,13.12720917]
[1733652093797,13.12720917,234.31,234.25,13.12720917]
[1733652094515,13.12720917,234.29,234.23,5.371]
[1733652095417,8.5367,234.28,234.22,21.45410917]
[1733652095601,21.66390917,234.28,234.22,8.3269]
[1733652096033,13.12720917,234.27,234.22,8.3269]
[1733652096207,21.66390917,234.28,234.22,8.3269]
[1733652096391,21.66390917,234.28,234.21,13.12720917]
[1733652096590,21.66390917,234.28,234.17,13.9193]
[1733652096591,21.66390917,234.28,234.22,13.12720917]
[1733652097086,20.0,234.32,234.27,13.12720917]
[1733652097287,25.6026,234.35,234.28,13.12720917]
[1733652097288,13.12720917,234.34,234.28,13.12720917]
[1733652097515,13.12720917,234.34,234.27,13.12720917]
[1733652097703,13.12720917,234.33,234.27,13.12720917]
[1733652099017,13.12720917,234.34,234.27,13.12720917]
[1733652099817,21.66140917,234.35,234.28,13.12720917]
[1733652100202,13.12720917,234.34,234.28,13.12720917]
[1733652100618,13.12720917,234.33,234.27,13.12720917]
[1733652101933,8.535,234.33,234.28,13.12720917]
[1733652102630,8.535,234.33,234.29,13.12720917]
[1733652103920,14.376,234.42,234.31,13.12720917]
[1733652103921,21.66100917,234.37,234.31,13.12720917]
[1733652104243,8.5338,234.37,234.32,13.12720917]
[1733652104604,17.0612,234.45,234.35,13.12720917]
[1733652104605,13.12720917,234.41,234.35,13.12720917]
[1733652104914,8.5322,234.41,234.35,13.12720917]
[1733652105801,8.5322,234.41,234.36,13.12720917]
[1733652106003,8.5322,234.41,234.37,13.12720917]
[1733652106205,13.12720917,234.43,234.37,13.12720917]
[1733652106430,13.12720917,234.45,234.38,13.12720917]
[1733652106630,13.12720917,234.45,234.39,13.12720917]
[1733652107534,8.5306,234.45,234.4,13.12720917]
[1733652107735,8.5306,234.45,234.42,13.12720917]
[1733652108030,13.12720917,234.48,234.42,13.12720917]
[1733652108819,13.12720917,234.48,234.31,5.0]
[1733652108820,13.12720917,234.44,234.37,13.12720917]
[1733652109026,13.12720917,234.45,234.39,13.12720917]
[1733652109539,13.12720917,234.47,234.41,13.12720917]
[1733652109834,13.12720917,234.48,234.42,13.12720917]
[1733652110349,8.5293,234.49,234.45,13.12720917]
[1733652110511,8.5293,234.49,234.44,13.12720917]
[1733652111058,13.12720917,234.51,234.45,13.12720917]
[1733652111235,13.12720917,234.52,234.46,13.12720917]
[1733652112846,0.4836403,234.54,234.49,13.12720917]
[1733652113331,0.4836403,234.54,234.45,5.118]
[1733652113332,13.61084947,234.54,234.48,13.12720917]
[1733652114013,13.12720917,234.5,234.45,5.118]
[1733652114225,13.12720917,234.49,234.45,5.118]
[1733652115714,13.12720917,234.5,234.45,5.118]
[1733652116134,9.0110403,234.54,234.45,5.118]
[1733652116135,13.12720917,234.51,234.45,18.24520917]
[1733652117035,13.12720917,234.52,234.46,13.12720917]
[1733652117212,13.12720917,234.53,234.47,13.12720917]
[1733652117931,9.0110403,234.54,234.45,18.24520917]
[1733652117932,13.12720917,234.51,234.45,18.24520917]
[1733652118123,13.12720917,234.5,234.45,5.118]
[1733652118527,9.0110403,234.54,234.45,5.118]
[1733652118850,13.12720917,234.5,234.45,5.118]
[1733652119927,13.12720917,234.46,234.4,5.1316]
[1733652120232,13.12720917,234.47,234.41,13.12720917]
[1733652120638,8.5286,234.51,234.42,13.12720917]
[1733652120639,13.12720917,234.48,234.42,13.12720917]
[1733652121350,8.5286,234.51,234.44,13.12720917]
[1733652121351,13.12720917,234.5,234.44,13.12720917]
[1733652121555,13.12720917,234.5,234.43,13.12720917]
[1733652123622,13.12720917,234.49,234.43,13.12720917]
[1733652124324,13.12720917,234.48,234.42,13.12720917]
[1733652124626,13.12720917,234.46,234.4,18.25880917]
[1733652125149,13.12720917,234.47,234.41,13.12720917]
[1733652125437,13.12720917,234.49,234.42,13.12720917]
[1733652125830,13.12720917,234.47,234.41,13.12720917]
[1733652126033,13.12720917,234.46,234.34,20.0]
[1733652126239,13.12720917,234.46,234.4,13.12720917]
[1733652126629,13.12720917,234.47,234.4,13.12720917]
[1733652126831,21.65640917,234.49,234.38,23.776884]
[1733652127033,13.12720917,234.48,234.41,13.12720917]
[1733652129647,13.12720917,234.47,234.41,13.12720917]
[1733652129961,13.12720917,234.51,234.44,13.12720917]
[1733652130555,21.65480917,234.53,234.46,13.12720917]
[1733652132242,8.5276,234.53,234.47,13.12720917]
[1733652132762,0.4836403,234.54,234.48,13.12720917]
[1733652136959,13.61084947,234.54,234.48,13.12720917]
[1733652137538,13.61084947,234.54,234.45,13.12720917]
[1733652137539,13.12720917,234.5,234.45,13.12720917]
[1733652138032,13.12720917,234.51,234.45,13.12720917]
[1733652138362,13.12720917,234.52,234.46,13.12720917]
[1733652138568,8.38379605,234.52,234.46,8.38379605]
[1733652138769,8.38379605,234.53,234.47,8.38379605]
[1733652140742,9.0110403,234.54,234.41,23.776884]
[1733652140743,0.4836403,234.54,234.49,8.38379605]
[1733652140958,0.4836403,234.54,234.5,8.38379605]
[1733652141166,0.4836403,234.54,234.51,8.38379605]
[1733652141553,0.4836403,234.54,234.5,8.38379605]
[1733652142238,0.4836403,234.54,234.49,8.38379605]
[1733652142755,8.86743635,234.54,234.48,8.38379605]
[1733652142959,8.86743635,234.54,234.49,23.776884]
[1733652143169,8.86743635,234.54,234.48,8.38379605]
[1733652143362,8.86743635,234.54,234.44,20.0]
[1733652143363,8.38379605,234.53,234.47,8.38379605]
[1733652143860,8.86743635,234.54,234.48,8.38379605]
[1733652144067,8.38379605,234.53,234.47,8.38379605]
[1733652145041,8.38379605,234.53,234.44,23.776884]
[1733652145042,8.86743635,234.54,234.48,8.38379605]
[1733652145968,0.4836403,234.54,234.48,8.38379605]
[1733652146549,0.4836403,234.54,234.49,32.16068005]
[1733652146761,0.4836403,234.54,234.49,8.38379605]
[1733652146940,0.4836403,234.54,234.5,8.38379605]
[1733652148865,0.4836403,234.54,234.49,8.38379605]
[1733652149168,0.4836403,234.54,234.5,8.38379605]
[1733652150250,0.4836403,234.54,234.52,8.38379605]
[1733652150454,0.4836403,234.54,234.53,8.38379605]
[1733652150768,0.4836403,234.54,234.53,32.16068005]
[1733652151566,8.36743635,234.59,234.49,13.7632]
[1733652151747,8.38379605,234.58,234.53,8.38379605]
[1733652151948,8.38379605,234.58,234.52,8.38379605]
[1733652152945,8.38379605,234.58,234.53,8.38379605]
[1733652153149,8.5247,234.61,234.53,8.38379605]
[1733652153461,8.38379605,234.59,234.53,8.38379605]
[1733652154260,8.5233,234.65,234.56,8.38379605]
[1733652154467,8.38379605,234.62,234.56,8.38379605]
[1733652154750,30.5699,234.65,234.41,5.1961]
[1733652154956,8.38379605,234.5,234.44,8.38379605]
[1733652155152,8.38379605,234.49,234.43,8.38379605]
[1733652155869,5.3055,234.58,234.4,8.3469]
[1733652155870,8.38379605,234.45,234.4,8.3469]
[1733652156042,37.197584,234.57,234.37,8.38379605]
[1733652156043,8.38379605,234.43,234.37,8.38379605]
[1733652156578,8.5294,234.49,234.41,8.38379605]
[1733652156753,17.0548,234.54,234.35,5.1961]
[1733652156950,8.38379605,234.5,234.43,8.38379605]
[1733652157150,25.5824,234.54,234.42,8.38379605]
[1733652157151,8.38379605,234.49,234.42,8.38379605]
[1733652157369,8.38379605,234.48,234.42,8.38379605]
[1733652157678,25.5824,234.54,234.37,23.776884]
[1733652157679,8.38379605,234.49,234.43,8.38379605]
[1733652158051,8.38379605,234.49,234.42,8.38379605]
[1733652158254,8.38379605,234.48,234.42,8.38379605]
[1733652158774,8.5276,234.54,234.44,8.38379605]
[1733652159078,8.38379605,234.51,234.45,8.38379605]
[1733652159655,3.32222799,234.63,234.48,8.38379605]
[1733652159856,3.32222799,234.63,234.44,13.543]
[1733652159857,8.38379605,234.55,234.49,8.38379605]
[1733652160461,8.38379605,234.56,234.5,8.38379605]
[1733652160664,8.38379605,234.57,234.5,8.38379605]
[1733652161070,8.38379605,234.57,234.51,8.38379605]
[1733652161483,8.38379605,234.58,234.52,32.16068005]
[1733652161698,8.38379605,234.59,234.52,32.16068005]
[1733652162369,8.38379605,234.59,234.53,8.38379605]
[1733652162682,13.09169178,234.6,234.54,13.09169178]
[1733652162853,13.09169178,234.61,234.55,13.09169178]
[1733652163687,13.09169178,234.61,234.55,23.776884]
[1733652165462,13.09169178,234.61,234.55,36.86857578]
[1733652166058,13.09169178,234.62,234.56,13.09169178]
[1733652166260,20.0,234.64,234.57,23.776884]
[1733652166565,13.09169178,234.62,234.57,23.776884]
[1733652167480,13.09169178,234.63,234.57,36.86857578]
[1733652168755,13.09169178,234.62,234.57,23.776884]
[1733652169187,8.5226,234.67,234.58,13.09169178]
[1733652169403,13.09169178,234.63,234.57,36.86857578]
[1733652169885,13.09169178,234.67,234.62,13.09169178]
[1733652170056,13.09169178,234.66,234.61,13.09169178]